bitfinex/quotes_SOLUSD_20250731
["timestamp","ask_amount","ask_price","bid_price","bid_amount"]
[1753977958427,4.71357839,177.85,177.84,6.65573022]
[1753977959256,4.71357839,177.85,177.84,5.99573022]
[1753977960152,4.71357839,177.85,177.82,6.28359453]
[1753977960352,4.71357839,177.85,177.84,5.99573022]
[1753977960555,4.71357839,177.85,177.84,6.65573022]
[1753977961379,4.71357839,177.85,177.84,5.99573022]
[1753977961676,4.71357839,177.85,177.84,18.27449237]
[1753977961881,3.99357839,177.85,177.84,18.83679556]
[1753977962233,2.87357839,177.85,177.84,18.83679556]
[1753977962456,2.87357839,177.85,177.84,17.61449237]
[1753977962866,2.87357839,177.85,177.84,18.17679556]
[1753977963239,19.21053926,177.9,177.87,26.0]
[1753977963438,19.21053926,177.9,177.89,5.99573022]
[1753977964342,0.66,177.94,177.89,5.99573022]
[1753977964537,0.7,177.93,177.88,39.78]
[1753977964735,0.7,177.93,177.92,5.99573022]
[1753977964937,5.99573022,177.95,177.9,5.99573022]
[1753977965148,5.61987186,177.94,177.88,39.78]
[1753977965353,5.61987186,177.94,177.91,5.99573022]
[1753977965566,0.7,177.93,177.91,5.99573022]
[1753977965864,0.7,177.92,177.9,5.99573022]
[1753977967063,0.7,177.92,177.89,5.99573022]
[1753977967265,11.61654973,177.91,177.86,5.99573022]
[1753977967477,0.7,177.9,177.86,5.99573022]
[1753977967771,0.7,177.9,177.87,5.99573022]
[1753977968275,0.7,177.9,177.86,5.99573022]
[1753977968453,10.45937732,177.9,177.81,26.0]
[1753977968772,151.5636471,177.89,177.85,5.99573022]
[1753977969079,0.7,177.88,177.85,5.99573022]
[1753977969280,4.46663409,177.88,177.85,5.99573022]
[1753977969579,6.32208354,177.87,177.83,5.99573022]
[1753977969774,0.7,177.86,177.83,5.99573022]
[1753977969942,0.7,177.86,177.84,5.99573022]
[1753977970574,0.7,177.85,177.84,5.99573022]
[1753977971349,4.47271315,177.87,177.84,5.99573022]
[1753977971550,0.7,177.86,177.84,5.99573022]
[1753977972762,3.77493859,177.86,177.82,39.78]
[1753977973069,0.7,177.85,177.83,5.99573022]
[1753977973566,3.77493859,177.85,177.84,5.99573022]
[1753977973766,3.77493859,177.87,177.84,5.99573022]
[1753977973969,3.77493859,177.87,177.82,45.40362284]
[1753977973970,3.77493859,177.86,177.85,5.99573022]
[1753977975378,3.77493859,177.88,177.85,11.61844599]
[1753977975548,3.77493859,177.87,177.85,5.62271577]
[1753977975749,147.1,177.89,177.86,5.99573022]
[1753977975970,7.98182654,177.88,177.85,5.99573022]
[1753977976144,3.78086171,177.87,177.85,5.99573022]
[1753977976344,4.48086171,177.86,177.85,5.99573022]
[1753977976544,0.7,177.86,177.85,5.99573022]
[1753977976760,3.78086171,177.87,177.85,5.99573022]
[1753977977050,3.78086171,177.86,177.83,5.62303744]
[1753977977976,3.78086171,177.88,177.83,5.62303744]
[1753977978194,3.78086171,177.87,177.83,5.62303744]
[1753977978470,3.78260636,177.88,177.86,5.99573022]
[1753977978675,3.78260636,177.88,177.87,5.99573022]
[1753977979061,3.78260636,177.88,177.87,11.61781376]
[1753977980383,147.1,177.89,177.87,11.61781376]
[1753977980384,147.1,177.89,177.87,5.99573022]
[1753977980582,147.8,177.89,177.88,5.99573022]
[1753977980876,151.58220206,177.89,177.88,5.99573022]
[1753977981546,150.88220206,177.89,177.88,5.99573022]
[1753977981765,150.88220206,177.89,177.88,11.6174977]
[1753977981978,147.8,177.94,177.88,11.6174977]
[1753977982269,17.6896899,177.98,177.89,39.72]
[1753977982270,3.78189908,177.93,177.89,39.72]
[1753977982472,0.7,177.98,177.9,0.56211354]
[1753977982473,3.78189908,177.97,177.9,0.56211354]
[1753977982680,7.98293487,177.96,177.9,0.56211354]
[1753977982886,3.78189908,177.95,177.9,0.56211354]
[1753977983061,3.78189908,177.97,177.92,26.0]
[1753977983256,0.7,177.98,177.96,5.99573022]
[1753977983463,0.7,177.98,177.97,5.99573022]
[1753977985566,4.48189908,177.98,177.97,5.99573022]
[1753977985959,3.78189908,177.99,177.97,5.99573022]
[1753977986158,10.09968646,178.01,177.98,5.99573022]
[1753977986354,8.67665244,178.0,177.94,5.61987186]
[1753977986558,8.67665244,178.0,177.98,5.99573022]
[1753977986559,4.48189908,178.0,177.98,5.99573022]
[1753977986977,4.48189908,178.0,177.99,5.99573022]
[1753977987284,3.78189908,178.0,177.99,11.61402338]
[1753977987483,2.79865558,178.04,177.99,32.21731581]
[1753977987660,2.79865558,178.04,178.03,5.99573022]
[1753977987854,2.79865558,178.04,178.03,48.78125471]
[1753977988275,0.7,178.13,178.04,26.0]
[1753977988465,4.18364679,178.12,178.1,5.99573022]
[1753977988666,0.7,178.11,178.09,5.99573022]
[1753977988980,0.7,178.11,178.04,26.0]
[1753977988981,0.7,178.11,178.1,9.7203022]
[1753977989373,5.61361368,178.14,178.1,9.7203022]
[1753977989561,0.7,178.13,178.1,9.7203022]
[1753977990077,0.7,178.13,178.07,39.98]
[1753977990287,14.17497525,178.13,178.08,9.7203022]
[1753977990459,0.7,178.12,178.09,9.7203022]
[1753977990778,0.7,178.11,178.09,9.7203022]
[1753977991085,0.7,178.11,178.08,9.7203022]
[1753977991285,0.7,178.1,178.08,9.7203022]
[1753977991458,6.31490444,178.1,178.08,9.7203022]
[1753977991658,0.7,178.09,178.08,9.7203022]
[1753977992362,6.31455928,178.11,178.08,9.7203022]
[1753977992681,0.7,178.1,178.06,40.0]
[1753977992877,0.7,178.09,178.08,9.7203022]
[1753977993665,6.31513841,178.09,178.08,9.7203022]
[1753977993867,6.31513841,178.09,178.06,9.7203022]
[1753977994066,0.7,178.08,178.07,9.7203022]
[1753977994265,6.29488394,178.1,178.07,9.7203022]
[1753977994465,0.68,178.09,178.07,9.7203022]
[1753977994883,0.68,178.08,178.07,9.7203022]
[1753977997188,147.1,178.14,178.07,9.7203022]
[1753977997388,10.4003022,178.13,178.08,9.7203022]
[1753977997691,10.4003022,178.12,178.07,9.7203022]
[1753977997874,6.29450788,178.11,178.07,9.7203022]
[1753977998259,0.68,178.1,178.07,9.7203022]
[1753977998464,0.68,178.09,178.07,9.7203022]
[1753977998678,0.68,178.08,178.07,9.7203022]
[1753977998871,0.68,178.08,178.06,49.6603022]
[1753977999075,6.29450788,178.11,178.07,9.7203022]
[1753977999290,6.29450788,178.11,178.08,9.7203022]
[1753977999469,0.68,178.1,178.08,9.7203022]
[1753977999664,0.68,178.1,178.07,9.7203022]
[1753977999882,5.61513841,178.09,178.03,2.82552449]
[1753978000103,5.61513841,178.09,177.86,56.22383986]
[1753978000104,0.68,178.08,178.05,9.7203022]
[1753978000279,0.68,178.08,178.04,49.6403022]
[1753978000477,10.4003022,178.08,178.04,49.6403022]
[1753978000693,0.68,178.08,178.05,9.7203022]
[1753978000990,0.68,178.07,178.05,9.7203022]
[1753978001770,6.29608446,178.06,178.05,9.7203022]
[1753978002568,16.01638666,178.06,177.95,5.61955605]
[1753978002784,9.7203022,178.03,177.98,9.7203022]
[1753978002980,0.68,178.02,177.99,9.7203022]
[1753978003293,0.68,178.02,178.0,9.7203022]
[1753978003807,5.61671534,178.04,178.01,9.7203022]
[1753978004171,0.68,178.03,178.01,9.7203022]
[1753978005085,6.296326,178.06,178.02,9.7203022]
[1753978005278,6.296326,178.06,178.05,9.7203022]
[1753978005498,6.296326,178.06,178.04,9.7203022]
[1753978005803,6.296326,178.06,178.0,39.92]
[1753978005804,6.296326,178.06,178.03,9.7203022]
[1753978006191,0.68,178.05,178.03,9.7203022]
[1753978006406,0.68,178.05,178.04,9.7203022]
[1753978006585,0.68,178.06,178.04,9.7203022]
[1753978006784,0.68,178.05,178.03,9.7203022]
[1753978007494,153.39585267,178.07,178.04,9.7203022]
[1753978008221,153.39585267,178.07,178.05,9.7203022]
[1753978008705,153.39585267,178.07,178.04,9.7203022]
[1753978008910,153.39585267,178.07,178.04,5.96823638]
[1753978009080,0.68,178.06,178.04,5.96823638]
[1753978009480,0.68,178.06,178.0,45.53789301]
[1753978010505,26.0,178.09,178.05,5.96823638]
[1753978010506,6.29535195,178.09,178.05,5.96823638]
[1753978010694,0.68,178.11,178.08,5.96823638]
[1753978010999,0.68,178.11,178.09,5.96823638]
[1753978011801,6.29481304,178.11,178.09,5.96823638]
[1753978012810,0.68,178.11,178.09,5.96823638]
[1753978013010,6.29457837,178.11,178.09,5.96823638]
[1753978013194,6.29457837,178.11,178.05,5.61631932]
[1753978013393,6.29457837,178.11,178.09,5.96823638]
[1753978014704,6.29457837,178.11,178.05,5.61631932]
[1753978014895,5.61457837,178.11,178.04,45.49667877]
[1753978015209,0.68,178.08,178.04,45.49667877]
[1753978015396,5.61457837,178.11,178.04,45.49667877]
[1753978016508,5.61457837,178.11,178.08,5.96823638]
[1753978017486,5.96823638,178.09,178.04,5.96823638]
[1753978017688,0.68,178.08,178.04,5.96823638]
[1753978017888,5.96823638,178.09,178.04,5.96823638]
[1753978018088,0.68,178.07,178.04,5.96823638]
[1753978018289,0.68,178.07,178.05,5.96823638]
[1753978019110,0.68,178.06,178.03,39.82]
[1753978019309,5.61584179,178.07,178.03,39.82]
[1753978019530,0.68,178.05,178.03,39.82]
[1753978019737,0.68,178.04,178.03,39.82]
[1753978019924,6.64823638,178.04,178.03,39.82]
[1753978020119,6.64823638,178.04,177.99,39.82]
[1753978020326,6.64823638,178.03,177.99,39.82]
[1753978020542,0.68,178.02,177.99,39.82]
[1753978020717,6.29754767,178.02,177.99,39.82]
[1753978020922,0.68,178.01,177.99,39.82]
[1753978021238,0.68,178.03,177.99,45.78823638]
[1753978021415,0.68,178.03,177.99,39.82]
[1753978021416,0.68,178.02,177.99,39.82]
[1753978021614,0.68,178.01,177.99,39.82]
[1753978022553,12.26501729,178.04,177.99,45.78823638]
[1753978022725,0.68,178.03,177.99,45.78823638]
[1753978024453,0.66,178.02,177.99,45.78823638]
[1753978025018,6.27743517,178.02,177.99,45.78823638]
[1753978025234,6.62823638,178.01,177.97,39.8]
[1753978025439,6.62823638,178.0,177.97,39.8]
[1753978025618,153.72823638,177.99,177.88,40.5]
[1753978025817,6.62823638,177.98,177.92,5.96823638]
[1753978026027,0.66,177.97,177.93,39.82]
[1753978026352,0.66,177.96,177.93,45.78823638]
[1753978026522,0.66,177.97,177.93,45.78823638]
[1753978026936,3.76938272,177.98,177.93,45.4401833]
[1753978027120,10.04802852,177.98,177.94,5.96823638]
[1753978027321,3.76938272,177.97,177.94,5.96823638]
[1753978027939,6.2786458,177.98,177.94,5.96823638]
[1753978028347,3.77357849,177.97,177.94,5.96823638]
[1753978028549,0.66,178.01,177.96,5.96823638]
[1753978028728,4.43298778,178.01,177.98,5.96823638]
[1753978029330,3.77298778,178.0,177.98,5.96823638]
[1753978029539,4.43298778,177.99,177.97,5.96823638]
[1753978029731,4.43298778,177.98,177.94,45.80823638]
[1753978029938,3.77298778,177.98,177.94,45.80823638]
[1753978030155,0.66,177.97,177.94,45.80823638]
[1753978030446,4.43298778,177.97,177.94,45.80823638]
[1753978030623,0.66,177.97,177.94,45.80823638]
[1753978031041,0.66,177.97,177.94,39.84]
[1753978031250,0.66,177.96,177.93,45.80823638]
[1753978031420,0.66,177.95,177.9,5.62105529]
[1753978031627,0.66,177.95,177.92,5.96823638]
[1753978031932,0.66,177.94,177.91,39.84]
[1753978032130,0.66,177.93,177.91,39.84]
[1753978032933,0.66,177.95,177.91,45.80823638]
[1753978033126,0.66,177.98,177.94,5.96823638]
[1753978033354,6.27867294,177.98,177.96,5.96823638]
[1753978033534,3.77497952,177.97,177.95,5.96823638]
[1753978033719,4.43497952,177.97,177.95,5.96823638]
[1753978033918,5.61837256,177.99,177.95,5.96823638]
[1753978034123,4.43473224,177.99,177.96,5.96823638]
[1753978034341,9.3930611,177.99,177.91,46.02282459]
[1753978034544,3.77401253,177.98,177.96,5.96823638]
[1753978034733,6.27832886,177.99,177.96,5.96823638]
[1753978034937,0.66,177.98,177.96,5.96823638]
[1753978035244,5.61892453,177.97,177.92,5.96823638]
[1753978035545,0.66,177.96,177.92,5.96823638]
[1753978035729,11.58716091,177.97,177.92,5.96823638]
[1753978036046,0.66,177.95,177.91,45.80823638]
[1753978036241,0.66,177.94,177.91,45.80823638]
[1753978036541,0.66,177.96,177.92,5.96823638]
[1753978036747,0.66,177.95,177.92,5.96823638]
[1753978037944,6.27957371,177.95,177.92,5.96823638]
[1753978038546,0.66,177.94,177.92,5.96823638]
[1753978039134,6.2793173,177.96,177.92,5.96823638]
[1753978039340,0.66,177.95,177.92,5.96823638]
[1753978041153,6.27961329,177.95,177.92,5.96823638]
[1753978043038,0.66,177.95,177.92,5.96823638]
[1753978043358,5.6196543,177.95,177.91,39.84]
[1753978043666,0.66,177.94,177.91,45.80823638]
[1753978044239,0.66,177.94,177.91,39.84]
[1753978044439,5.6196543,177.95,177.91,39.84]
[1753978044742,0.66,177.94,177.91,45.80823638]
[1753978045043,0.66,177.95,177.92,5.96823638]
[1753978045355,5.61926989,177.96,177.92,5.96823638]
[1753978045659,5.96823638,177.97,177.92,5.96823638]
[1753978045858,5.968237,178.05,177.91,45.46081364]
[1753978045859,9.55702375,178.02,177.96,5.96823638]
[1753978046055,3.76585845,178.01,177.98,5.96823638]
[1753978046256,5.96823638,177.99,177.92,45.72823638]
[1753978046457,5.96823638,177.95,177.92,39.76]
[1753978046771,0.66,177.94,177.89,45.76823638]
[1753978047070,5.96823638,177.92,177.83,5.62334814]
[1753978047238,6.62823638,177.92,177.86,5.96823638]
[1753978047444,6.62823638,177.92,177.87,5.96823638]
[1753978047744,0.66,177.91,177.87,5.96823638]
[1753978048055,0.66,177.9,177.86,5.96823638]
[1753978048765,30.83165847,177.98,177.84,45.76823638]
[1753978048946,5.96823638,177.95,177.9,5.96823638]
[1753978049262,0.66,177.94,177.9,5.96823638]
[1753978049652,11.58779243,177.95,177.89,45.78823638]
[1753978049859,0.66,177.93,177.89,45.78823638]
[1753978050440,5.61955605,177.95,177.91,5.96823638]
[1753978050840,6.2792991,177.96,177.91,5.96823638]
[1753978051052,0.66,177.96,177.93,5.96823638]
[1753978051366,26.0,177.97,177.93,5.96823638]
[1753978051666,26.0,177.97,177.89,45.44121881]
[1753978051667,0.66,177.97,177.94,5.96823638]
[1753978052049,10.04992617,178.02,177.96,5.96823638]
[1753978052259,39.84,178.04,178.0,5.96823638]
[1753978052568,26.0,178.01,178.0,5.96823638]
[1753978053070,6.27703083,178.03,178.0,5.96823638]
[1753978053246,0.66,178.02,178.0,5.96823638]
[1753978053441,0.66,178.04,178.01,5.96823638]
[1753978053670,6.27608446,178.06,178.03,5.96823638]
[1753978053857,3.76229619,178.05,178.03,5.96823638]
[1753978054057,4.42229619,178.05,178.03,5.96823638]
[1753978054259,4.42229619,178.05,178.02,5.96823638]
[1753978054544,10.03876606,178.05,178.02,5.96823638]
[1753978054755,6.27646987,178.05,178.02,5.96823638]
[1753978055169,26.7,178.08,178.04,5.96823638]
[1753978055349,4.46278098,178.07,178.04,5.96823638]
[1753978055549,0.7,178.06,178.03,5.96823638]
[1753978055752,0.7,178.06,178.04,5.96823638]
[1753978056244,6.3161178,178.06,178.04,5.96823638]
[1753978056555,0.7,178.06,178.04,5.96823638]
[1753978057365,0.7,178.06,178.03,5.96823638]
[1753978057564,5.61616119,178.06,178.03,5.96823638]
[1753978057768,0.7,178.05,178.03,5.96823638]
[1753978057948,0.7,178.05,178.0,5.61788798]
[1753978057949,0.7,178.04,178.0,5.96823638]
[1753978058144,0.7,178.03,178.0,5.96823638]
[1753978058473,5.61644285,178.05,178.01,5.96823638]
[1753978058649,6.31644285,178.05,178.01,5.96823638]
[1753978058963,0.7,178.04,178.0,5.96823638]
[1753978059268,0.7,178.03,178.01,5.96823638]
[1753978059456,0.7,178.03,178.0,5.96823638]
[1753978060864,5.61684501,178.04,178.01,5.96823638]
[1753978061067,6.31684501,178.04,178.01,5.96823638]
[1753978061653,5.61646468,178.05,178.01,5.96823638]
[1753978061855,29.7705266,178.05,178.02,5.96823638]
[1753978062153,26.0,178.05,178.03,5.96823638]
[1753978063071,32.31643704,178.05,178.02,5.96823638]
[1753978063442,0.7,178.04,178.02,5.96823638]
[1753978064454,0.7,178.06,178.02,5.96823638]
[1753978064664,3.77419468,178.07,178.03,5.96823638]
[1753978064866,4.47419468,178.07,178.03,5.96823638]
[1753978065076,10.09004285,178.07,177.99,6.17988644]
[1753978065378,10.44243106,178.06,178.01,5.96823638]
[1753978065673,5.96823638,178.03,177.96,0.56192402]
[1753978065877,0.7,178.02,177.98,5.96823638]
[1753978066054,0.7,178.02,177.95,39.76]
[1753978066367,5.61766192,178.01,177.98,5.96823638]
[1753978066673,6.31766192,178.01,177.98,5.96823638]
[1753978066873,0.7,178.01,177.98,5.96823638]
[1753978067785,0.7,178.0,177.94,0.56198718]
[1753978067963,0.7,178.0,177.97,5.96823638]
[1753978068165,11.58568079,178.02,177.97,5.96823638]
[1753978068359,6.3185629,177.99,177.96,5.96823638]
[1753978068672,0.7,177.98,177.95,5.96823638]
[1753978068875,0.7,177.98,177.96,5.96823638]
[1753978069267,5.61808517,178.0,177.96,5.96823638]
[1753978069461,6.66823638,178.02,177.97,5.96823638]
[1753978069656,26.0,178.01,177.98,5.96823638]
[1753978070254,75.28039221,178.06,177.99,5.96823638]
[1753978070255,5.96823638,178.04,177.99,5.96823638]
[1753978070476,10.09244287,178.03,178.0,5.96823638]
[1753978070674,3.77520787,178.02,178.0,5.96823638]
[1753978070971,3.77520787,178.02,177.99,5.96823638]
[1753978071782,6.66823638,178.01,177.96,5.96823638]
[1753978072080,5.617235,178.03,177.94,5.96823638]
[1753978072081,5.96823638,177.99,177.94,5.96823638]
[1753978072381,5.96823638,177.99,177.92,5.62029621]
[1753978072382,6.66823638,177.98,177.92,5.62029621]
[1753978072564,5.61892453,177.97,177.93,5.96823638]
[1753978072766,6.31892453,177.97,177.93,5.96823638]
[1753978073072,5.6186371,177.98,177.93,5.96823638]
[1753978073287,0.7,177.97,177.94,5.96823638]
[1753978073470,0.7,177.98,177.94,5.96823638]
[1753978074474,6.31862758,177.98,177.94,5.96823638]
[1753978074872,0.7,177.97,177.93,9.73691069]
[1753978075186,0.7,177.96,177.91,45.3608056]
[1753978075383,0.7,177.96,177.93,9.73691069]
[1753978075881,0.7,177.96,177.94,9.73691069]
[1753978076080,0.7,177.95,177.93,9.73691069]
[1753978076885,0.7,177.95,177.92,9.73691069]
[1753978078081,16.05594542,177.97,177.92,15.3573833]
[1753978078283,0.7,177.96,177.91,39.74]
[1753978078483,9.73691069,177.96,177.91,49.47691069]
[1753978078663,0.7,177.95,177.92,9.73691069]
[1753978079352,0.7,177.94,177.91,49.47691069]
[1753978079567,10.43691069,177.96,177.91,49.47691069]
[1753978079769,16.05624206,177.96,177.91,55.09770903]
[1753978079994,6.31933137,177.96,177.92,9.73691069]
[1753978080192,9.73691069,177.98,177.93,9.73691069]
[1753978080382,3.7768736,177.97,177.93,9.73691069]
[1753978080566,6.31867359,177.98,177.94,9.73691069]
[1753978080771,4.47705255,177.97,177.93,9.73691069]
[1753978081188,4.47705255,177.97,177.92,9.73691069]
[1753978081582,4.47705255,177.97,177.93,9.73691069]
[1753978081780,6.31799976,178.0,177.96,9.73691069]
[1753978081979,3.77648374,177.99,177.97,9.73691069]
[1753978082179,3.77648374,177.99,177.98,9.73691069]
[1753978082486,17.82980974,178.02,177.98,9.73691069]
[1753978082794,3.77648374,178.01,177.99,9.73691069]
[1753978082994,10.09381666,178.03,177.99,9.73691069]
[1753978083192,4.47648374,178.02,177.99,9.73691069]
[1753978083397,4.47648374,178.02,177.98,9.73691069]
[1753978083587,0.7,178.01,177.98,9.73691069]
[1753978083774,4.47648374,178.01,177.98,9.73691069]
[1753978085002,0.7,178.01,177.98,9.73691069]
[1753978085172,3.77648374,178.02,178.0,9.73691069]
[1753978085690,4.48648374,178.03,178.0,9.73691069]
[1753978085892,10.1035754,178.03,178.0,9.73691069]
[1753978086096,3.77648374,178.02,178.0,9.73691069]
[1753978086999,0.71,178.03,178.0,9.73691069]
[1753978087297,4.48648374,178.03,178.0,9.73691069]
[1753978088089,0.71,178.02,178.0,9.73691069]
[1753978088285,4.48648374,178.02,178.0,9.73691069]
[1753978088900,3.77648374,178.03,177.98,5.61837853]
[1753978089082,0.71,178.02,177.99,9.73691069]
[1753978089281,0.71,178.02,178.0,9.73691069]
[1753978089476,3.77648374,178.03,178.01,9.73691069]
[1753978089677,3.77648374,178.04,178.01,9.73691069]
[1753978089878,0.71,178.03,178.0,9.73691069]
[1753978090072,4.48648374,178.03,178.0,9.73691069]
[1753978091679,3.77648374,178.04,177.99,5.61821817]
[1753978091905,4.48648374,178.05,178.02,9.73691069]
[1753978092302,0.71,178.04,178.02,9.73691069]
[1753978092679,3.77648374,178.05,178.03,9.73691069]
[1753978092888,4.48648374,178.05,178.03,9.73691069]
[1753978093095,3.77648374,178.05,178.02,9.73691069]
[1753978093294,0.71,178.04,178.02,9.73691069]
[1753978093602,3.77648374,178.05,178.03,9.73691069]
[1753978093803,3.77648374,178.05,178.04,9.73691069]
[1753978094909,4.48648374,178.07,178.04,5.9687394]
[1753978095285,0.71,178.06,178.04,5.9687394]
[1753978095488,4.48648374,178.06,178.03,5.9687394]
[1753978095897,0.71,178.06,178.03,5.9687394]
[1753978096092,3.77648374,178.06,178.01,5.61757879]
[1753978096402,0.71,178.05,178.01,5.61757879]
[1753978097109,0.71,178.05,177.98,19.66482066]
[1753978097620,0.71,178.05,177.99,0.56182931]
[1753978097781,3.77648374,178.06,177.99,0.56182931]
[1753978097980,3.77648374,178.07,177.99,0.56182931]
[1753978098384,3.77648374,178.07,178.01,26.0]
[1753978098604,3.77648374,178.09,178.06,5.9687394]
[1753978098810,3.77648374,178.09,178.08,5.9687394]
[1753978099016,0.71,178.1,178.08,5.9687394]
[1753978099194,3.77648374,178.11,178.09,5.9687394]
[1753978099492,4.48648374,178.11,178.09,5.9687394]
[1753978099886,3.77648374,178.11,178.09,5.9687394]
[1753978100213,0.71,178.1,178.08,5.9687394]
[1753978100717,6.6787394,178.1,178.05,5.9687394]
[1753978100915,3.77626134,178.09,178.05,5.9687394]
[1753978101091,4.48626134,178.09,178.06,5.9687394]
[1753978101287,0.71,178.08,178.06,5.9687394]
[1753978101611,0.71,178.08,178.07,5.9687394]
[1753978102388,6.32502292,178.1,178.07,5.9687394]
[1753978102588,4.4847625,178.09,178.07,5.9687394]
[1753978103122,0.71,178.08,178.07,5.9687394]
[1753978103691,0.71,178.09,178.07,5.9687394]
[1753978103898,0.71,178.08,178.07,5.9687394]
[1753978104091,3.77368046,178.1,178.07,5.9687394]
[1753978104417,4.48368046,178.1,178.08,5.9687394]
[1753978105343,5.61428006,178.12,178.09,5.9687394]
[1753978105534,0.71,178.11,178.08,5.9687394]
[1753978105858,0.71,178.1,178.08,5.9687394]
[1753978106207,0.71,178.09,178.02,32.53047403]
[1753978106409,0.71,178.09,178.08,5.9687394]
[1753978106624,4.48027757,178.11,178.08,5.9687394]
[1753978106831,46.04395265,178.13,178.1,5.9687394]
[1753978107010,3.77034486,178.12,178.1,5.9687394]
[1753978107328,4.48034486,178.12,178.11,5.9687394]
[1753978107517,3.77034486,178.12,178.11,5.9687394]
[1753978107924,39.72,178.13,178.11,5.9687394]
[1753978108230,0.71,178.13,178.11,5.9687394]
[1753978108428,3.76781087,178.14,178.12,5.9687394]
[1753978108733,0.71,178.13,178.12,5.9687394]
[1753978109229,0.71,178.13,178.11,5.9687394]
[1753978109441,0.71,178.12,178.08,5.9687394]
[1753978109623,0.71,178.12,178.06,39.7]
[1753978109828,6.6787394,178.12,178.05,26.0]
[1753978110031,6.6787394,178.11,178.06,5.9687394]
[1753978110232,0.71,178.1,178.06,5.9687394]
[1753978110535,5.9687394,178.12,178.07,5.9687394]
[1753978110845,0.71,178.1,178.07,5.9687394]
[1753978111020,0.71,178.09,178.03,45.31703083]
[1753978111220,0.71,178.09,178.07,5.9687394]
[1753978111422,0.71,178.09,178.06,5.9687394]
[1753978111940,0.71,178.09,178.03,45.31703083]
[1753978111941,0.71,178.09,178.07,5.9687394]
[1753978112127,0.71,178.11,178.07,5.9687394]
[1753978112326,0.71,178.1,178.07,5.9687394]
[1753978112530,5.9687394,178.11,178.02,5.61734636]
[1753978112736,0.71,178.09,178.06,5.9687394]
[1753978113443,0.71,178.09,178.05,5.9687394]
[1753978113647,6.32523951,178.09,178.05,5.9687394]
[1753978113828,6.32523951,178.09,178.02,2.81253529]
[1753978113829,0.71,178.08,178.02,8.42981875]
[1753978114035,0.71,178.08,178.04,5.9687394]
[1753978114443,11.58397891,178.09,178.0,26.56179775]
[1753978114627,5.9687394,178.04,177.99,5.9687394]
[1753978114827,6.6687394,178.03,177.97,5.9687394]
[1753978115021,5.9687394,178.02,177.97,5.9687394]
[1753978115229,5.9687394,178.02,177.95,5.61955605]
[1753978115230,6.6687394,178.01,177.95,5.9687394]
[1753978115433,5.9687394,177.98,177.93,2.87071986]
[1753978115645,0.7,177.97,177.9,45.32113546]
[1753978115853,5.9687394,177.98,177.93,5.9687394]
[1753978116148,0.7,177.98,177.94,5.9687394]
[1753978116348,0.7,177.98,177.9,74.14637998]
[1753978116523,0.7,178.01,177.95,5.9687394]
[1753978116726,5.9687394,178.0,177.95,5.9687394]
[1753978117036,0.7,177.99,177.95,5.9687394]
[1753978117563,5.9687394,177.99,177.94,5.9687394]
[1753978117946,0.7,178.02,177.97,5.9687394]
[1753978118147,6.6687394,178.02,177.97,5.9687394]
[1753978118348,0.7,178.01,177.97,5.9687394]
[1753978118669,0.7,178.01,177.98,5.9687394]
[1753978118862,0.7,178.03,177.99,5.9687394]
[1753978119058,4.46625138,178.03,177.99,5.9687394]
[1753978119261,0.7,178.02,177.98,5.9687394]
[1753978119563,0.7,178.01,177.97,5.9687394]
[1753978119756,6.31703859,178.03,177.99,5.9687394]
[1753978120263,31.61681244,178.04,178.0,5.9687394]
[1753978120458,0.7,178.06,178.03,5.9687394]
[1753978120657,0.7,178.06,177.98,5.61856129]
[1753978120658,0.7,178.06,178.04,5.9687394]
[1753978121054,152.06566439,178.08,178.05,5.9687394]
[1753978121265,4.18716892,178.07,177.98,6.18042217]
[1753978121441,147.6,178.06,178.05,5.9687394]
[1753978122345,153.91608446,178.06,177.99,26.0]
[1753978122550,148.3,178.05,178.01,5.9687394]
[1753978122745,148.3,178.05,178.01,9.72958027]
[1753978122950,0.7,178.04,178.01,9.72958027]
[1753978123160,0.7,178.03,178.01,9.72958027]
[1753978123662,147.6,178.05,178.02,9.72958027]
[1753978123864,147.6,178.05,178.04,9.72958027]
[1753978125467,0.7,178.09,178.04,9.72958027]
[1753978125679,6.31526105,178.09,178.07,9.72958027]
[1753978125961,0.7,178.08,178.05,9.72958027]